[Event "40th Cappelle Open 2024"]
[Site "Cappelle-la-Grande"]
[Date "2024.03.07"]
[Round "8.17"]
[White "Fedoryshyn, Ievgenii"]
[Black "Boyer, Mahel"]
[Result "0-1"]
[ECO "C08"]
[WhiteElo "2256"]
[BlackElo "2415"]
[Annotator "TA"]
[PlyCount "80"]
[EventDate "2024.03.02"]
[EventType "swiss"]
[EventCountry "FRA"]
[SourceTitle "playchess.com"]
[Source "ChessBase"]
[SourceQuality "1"]
[TimeControl "40/5400+30:1800+30"]

{[%evp 13,80,10,32,33,33,40,37,27,31,28,39,33,32,18,26,37,26,14,47,22,33,30,27,22,23,35,27,28,30,17,22,19,18,21,19,16,16,11,14,0,23,0,-7,0,0,0,0,-266,-250,-843,-835,-835,-571,-1256,-365,-1297,-1178,-1287,-1187,-1306,-1286,-1639,-1600,-1573,-1445,-2260,-2017,-3277,-2821]} 1. e4 {[%emt 0:00:02]} e6 {[%emt 0:00:10]} 2. d4 {[%emt 0:00:10]} d5 {[%emt 0:00:04]} 3. Nd2 {[%emt 0:00:07]} c5 {[%emt 0:00:25]} 4. exd5 {[%emt 0:00:22]} exd5 {[%emt 0:00:06]} 5. Ngf3 {[%emt 0:00:21]} a6 {[%emt 0:00:11]} 6. dxc5 {[%emt 0:02:47]} Bxc5 {[%emt 0:00:04]} 7. Nb3 {[%emt 0:00:08]} Bd6 {[%emt 0:00:05]} 8. Bd3 {[%emt 0:05:44]} (8. Qxd5 $2 Bb4+ $19) 8... Nf6 {[%emt 0:00:21]} 9. Qe2+ {[%emt 0:00:59]} Be7 {[%emt 0:00:39]} 10. h3 {[%emt 0:01:04] White is slightly better.} O-O {[%emt 0:00:37]} 11. O-O {[%emt 0:00:32]} Nc6 {[%emt 0:00:12]} 12. c3 {[%emt 0:00:47]} Re8 {[%emt 0:01:56]} 13. Qc2 {[%emt 0:01:56]} Bf8 {[%emt 0:04:03]} 14. Re1 {[%emt 0:23:20]} Rxe1+ {[%emt 0:06:27]} 15. Nxe1 {[%emt 0:00:01]} h6 {[%emt 0:25:56]} (15... Ne5 $5) 16. Nf3 {[%emt 0:02:30]} Bd6 {[%emt 0:06:05]} 17. Be3 {[%emt 0:01:32]} Bd7 {[%emt 0:05:49]} 18. Nc5 {[%emt 0:03:23]} Qc7 {[%emt 0:00:30]} 19. Nxd7 {[%emt 0:01:29]} Qxd7 {[%emt 0:00:06]} 20. Rd1 {[%emt 0:03:16]} Re8 {[%emt 0:02:48]} 21. Qd2 {[%emt 0:05:15]} Qe6 {[%emt 0:07:10]} 22. Bc2 {[%emt 0:17:14]} Bc7 {[%emt 0:11:58]} 23. Qd3 {[%emt 0:04:52]} Na5 {[%emt 0:05:19]} 24. b3 {[%emt 0:03:04]} Nc6 {[%emt 0:03:43]} 25. Qf5 {[%emt 0:04:45]} Qe7 {[%emt 0:12:07]} 26. Bb1 {[%emt 0:06:20]} Ne5 {[%emt 0:06:01]} 27. Nd4 {[%emt 0:03:39]} g6 {[%emt 0:00:36]} 28. Qc2 {[%emt 0:00:27]} h5 {[%emt 0:00:30]} 29. Ne2 {[%emt 0:03:00]} Neg4 {[%emt 0:00:30]} 30. Rd3 {[%emt 0:02:45][%mdl 8192] [#]} (30. hxg4 $11 Nxg4 31. Nd4 (31. Rxd5 $2 {too greedy.} Nxe3 32. Qd2 Nxd5 $19)) 30... Qd6 $1 $19 {[%emt 0:00:15]} 31. hxg4 $2 {[%emt 0:00:33]} (31. g3 Nxe3 32. Rxe3) 31... Qh2+ {[%emt 0:00:01]} 32. Kf1 {[%emt 0:00:06]} Nxg4 {[%emt 0:00:06] aiming for ...Qh1+.} 33. Qc1 {[%emt 0:01:26]} Qh1+ {[%emt 0:00:48]} 34. Ng1 {[%emt 0:00:02]} Bh2 {[%emt 0:00:14] Black is clearly winning.} 35. Ke2 {[%emt 0:01:14]} Bxg1 {[%emt 0:00:04]} 36. Qf1 {[%emt 0:02:24]} Nh2 {[%emt 0:00:39]} 37. Qd1 {[%emt 0:00:49]} Qxg2 {[%emt 0:00:02][%csl Gg1][%cal Rg2f2] [#]} 38. Kd2 {[%emt 0:00:20]} Bxf2 {[%emt 0:00:07]} 39. Qe2 {[%emt 0:00:41]} Bxe3+ {[%emt 0:00:09]} 40. Rxe3 {[%emt 0:00:05]} Nf1+ {[%emt 0:00:04] Weighted Error Value: White=0.93/Black=0.35.  Loses game:     	White=1     	---        Mistake:       	White=1     	---        Inaccurate:     	White=2     	Black=1      OK:         	White=10    	Black=9      Best:        	---       	Black=1      Strong:       	---       	Black=1} 0-1

[Event "40th Cappelle Open 2024"]
[Site "Cappelle-la-Grande"]
[Date "2024.03.07"]
[Round "8.18"]
[White "Bogdanov, Egor"]
[Black "Godbole, Atharva"]
[Result "1-0"]
[ECO "B22"]
[WhiteElo "2409"]
[BlackElo "2199"]
[Annotator "TA"]
[PlyCount "79"]
[EventDate "2024.03.02"]
[EventType "swiss"]
[EventCountry "FRA"]
[SourceTitle "playchess.com"]
[Source "ChessBase"]
[SourceQuality "1"]
[TimeControl "40/5400+30:1800+30"]

{[%evp 25,79,-52,0,-20,-10,-14,-9,-14,-5,-5,-14,-104,28,44,32,29,59,41,33,31,56,17,75,65,63,42,45,0,0,0,101,108,102,112,114,107,109,44,112,108,144,143,135,121,29953,29942,29957,29958,29955,5102,29961,29963,29968,29970,29970,29970]} 1. e4 {[%emt 0:00:02]} c5 {[%emt 0:00:25]} 2. c3 {[%emt 0:00:07]} Nf6 {[%emt 0:00:12]} 3. e5 {[%emt 0:00:06]} Nd5 {[%emt 0:00:09]} 4. d4 {[%emt 0:00:02]} cxd4 {[%emt 0:00:55]} 5. Nf3 {[%emt 0:00:05]} Nc6 {[%emt 0:00:23]} 6. Bc4 {[%emt 0:00:05]} Nb6 {[%emt 0:01:52]} 7. Bb3 {[%emt 0:00:06]} d6 {[%emt 0:04:21]} 8. exd6 {[%emt 0:00:06]} Qxd6 {[%emt 0:00:05]} 9. O-O {[%emt 0:00:04]} Be6 {[%emt 0:02:39]} 10. Na3 {[%emt 0:00:06]} dxc3 {[%emt 0:12:16]} 11. Qe2 {[%emt 0:00:06]} Bxb3 {[%emt 0:02:53]} 12. Nb5 {[%emt 0:00:07]} Qb8 {[%emt 0:02:22]} 13. axb3 {[%emt 0:00:02]} e5 {[%emt 0:04:26]} (13... e6 $1 $15) 14. Nfd4 {[%emt 0:00:07]} Be7 {[%emt 0:10:58]} (14... c2 {looks sharper.} 15. Bg5 Nd5 16. Qc4 exd4 17. Qxd5 Bb4) 15. Nf5 {[%emt 0:00:34]} O-O {[%emt 0:05:41]} 16. Bh6 {[%emt 0:22:20] The position is equal.} gxh6 {[%emt 0:06:48]} (16... cxb2 17. Bxg7 Qc8 (17... bxa1=R 18. Qg4 Rxf1+ 19. Kxf1 h5 20. Qxh5 f6 21. Qg6 Rf7 22. Nh6#) 18. Nxe7+ (18. Bxf8 $2 Qxf5 19. Qxb2 Bxf8 $19) 18... Nxe7 19. Qxb2 $16 (19. Bxf8 $2 bxa1=R 20. Rxa1 Qxf8 $19)) 17. Qg4+ {[%emt 0:00:05]} (17. bxc3 Kh8 18. Rfd1 a6 $19 (18... Rg8 $2 19. Nxe7 Nxe7 20. Nd6 $19)) 17... Bg5 {[%emt 0:00:04]} 18. h4 {[%emt 0:10:27] [#]} (18. bxc3 Kh8 19. Rad1 (19. Nbd6 $2 Nc8 $19) 19... Rg8 $19) (18. Nxh6+ $11 Kh8 19. Qxg5) 18... f6 {[%emt 0:02:29]} 19. bxc3 $11 {[%emt 0:20:11]} Kh8 {[%emt 0:03:16][%cal Oh6h5]} 20. hxg5 {[%emt 0:00:19]} hxg5 {[%emt 0:00:24]} 21. Rad1 {[%emt 0:01:41]} (21. Nbd6 Qc7 $11) 21... a6 {[%emt 0:01:17]} 22. Nbd6 {[%emt 0:00:33][%mdl 1024] And now Qh3 would win. White has compensation.} Qc7 {[%emt 0:00:18]} 23. Rd3 {[%emt 0:04:40]} Nc8 {[%emt 0:02:46]} (23... e4 $11 {remains equal.} 24. Rd2 (24. Qxe4 Nc8 $14) (24. Nxe4 Ne5 $14) 24... e3 25. Nxe3 (25. fxe3 Rad8 $11) 25... Nd7) 24. Ne4 $36 {[%emt 0:01:25][%mdl 2048] Rfd1 is the strong threat. White is more active. White is much more active.} N8e7 {[%emt 0:05:03]} 25. Rfd1 {[%emt 0:08:17]} (25. Nc5 {is interesting.} Nxf5 26. Rd7 Qc8 27. Qxf5 Ne7 28. Qe6) 25... Rad8 {[%emt 0:04:51] Against Rd7} (25... Nxf5 $2 26. Rd7 $18 (26. Qxf5 Qg7 $16) (26. Qxf5 Qg7 $16)) 26. Nxe7 {[%emt 0:05:10]} Qxe7 {[%emt 0:00:12]} (26... Rxd3 $2 27. Rxd3 Qxe7 28. Rd7 $18) 27. Rd7 {[%emt 0:03:15]} f5 {[%emt 0:02:06]} (27... Qe8 $1 $11 28. Nc5 (28. Rxb7 $2 f5 $19) 28... Rxd7 29. Rxd7 Qg6) 28. Rxe7 {[%emt 0:00:24] Rxd8 would kill now.} (28. Qxg5 $2 {perishes.} Rxd7 29. Rxd7 Qxd7 $19) 28... fxg4 {[%emt 0:00:05]} 29. Rxd8 {[%emt 0:00:15]} (29. Rxb7 $2 {too greedy.} Rxd1+ 30. Kh2 Nd8 $19) 29... Nxd8 {[%emt 0:00:05]} 30. Nxg5 {[%emt 0:00:25][%mdl 4096] Endgame. KRN-KRN} Kg8 {[%emt 0:01:01]} 31. Rxh7 {[%emt 0:09:01]} ({Don't play} 31. Nxh7 $6 Rf7 32. Re8+ Kxh7 $11) ({Better is} 31. Ne4 $1 $16) 31... Rf5 {[%emt 0:04:01]} ({Black should try} 31... g3 $14) 32. Rd7 $1 {[%emt 0:00:08]} Rxg5 {[%emt 0:00:09]} 33. Rxd8+ {[%emt 0:00:02] KR-KR} Kh7 {[%emt 0:03:43]} 34. Rd7+ $1 {[%emt 0:02:25]} Rg7 $2 {[%emt 0:00:29][%mdl 8192] Loses the game.} (34... Kh6 $16) 35. Rxg7+ $1 {[%emt 0:01:48]} Kxg7 {[%emt 0:00:04]} 36. Kh2 $1 {[%emt 0:00:08]} Kf6 {[%emt 0:08:54]} 37. Kg3 {[%emt 0:00:07]} Kf5 {[%emt 0:00:05] [#]} 38. f3 $1 {[%emt 0:00:15] White mates.} gxf3 {[%emt 0:06:42]} 39. Kxf3 {[%emt 0:00:11]} b5 {[%emt 0:03:46] [#]} 40. b4 $1 {[%emt 0:01:33] Weighted Error Value: White=0.13 (very precise) /Black=0.59.  Loses game:     	---       	Black=1      Mistake:       	White=2     	Black=4      Inaccurate:     	White=2     	Black=2      OK:         	White=5     	Black=8      Best:        	White=4     	Black=3      Strong:       	White=3     	---} 1-0

[Event "40th Cappelle Open 2024"]
[Site "Cappelle-la-Grande"]
[Date "2024.03.08"]
[Round "9.1"]
[White "Barp, Alberto"]
[Black "Valsecchi, Alessio"]
[Result "0-1"]
[ECO "E68"]
[WhiteElo "2449"]
[BlackElo "2490"]
[Annotator "TA"]
[PlyCount "103"]
[EventDate "2024.03.02"]
[EventType "swiss"]
[EventCountry "FRA"]
[SourceTitle "playchess.com"]
[Source "ChessBase"]
[SourceQuality "1"]
[TimeControl "40/5400+30:1800+30"]

{[%evp 22,103,41,36,33,31,37,0,-3,5,44,10,0,2,0,0,0,0,0,0,8,0,0,-43,0,0,0,-45,-28,-67,-37,-34,-23,-35,0,-38,0,0,0,-106,-110,-110,-114,-128,-130,-129,-129,-122,-81,-83,-84,-160,-157,-159,-160,-206,-202,-185,-174,-210,-208,-177,-147,-373,-358,-337,-329,-912,-796,-927,-912,-645,-645,-984,-720,-6320,-2007,-11217,-11217,-5510,-6320,-5060,-5060,-29986]} 1. d4 {[%emt 0:00:03]} Nf6 {[%emt 0:00:31]} 2. c4 {[%emt 0:00:07]} g6 {[%emt 0:00:12]} 3. g3 {[%emt 0:00:23]} Bg7 {[%emt 0:00:07]} 4. Bg2 {[%emt 0:00:04]} O-O {[%emt 0:00:21]} 5. Nc3 {[%emt 0:00:05]} d6 {[%emt 0:00:09]} 6. Nf3 {[%emt 0:00:06][%cal Bg1f3,Bf3d4,Bd4b3][%mdl 32]} Nbd7 {[%emt 0:00:23][%cal Bb8d7,Bd7c5,Bc5e6][%mdl 32]} 7. O-O {[%emt 0:00:09]} e5 {[%emt 0:00:13]} 8. e4 {[%emt 0:00:09]} exd4 {[%emt 0:01:13]} 9. Nxd4 {[%emt 0:00:14]} Nc5 {[%emt 0:00:14]} 10. h3 {[%emt 0:00:32]} Re8 {[%emt 0:00:48]} 11. Re1 {[%emt 0:00:10]} h6 {[%emt 0:00:39]} 12. Nb3 {[%emt 0:07:53]} Ne6 {[%emt 0:01:55]} 13. f4 {[%emt 0:08:16]} a5 {[%emt 0:00:12][%cal Ba7a5,Ba5a4,Ba4a3][%mdl 32]} 14. Be3 {[%emt 0:12:17]} a4 {[%emt 0:12:54] The position is equal.} 15. Nd4 {[%emt 0:00:15]} a3 {[%emt 0:09:44]} 16. b3 {[%emt 0:09:40]} Nxd4 $1 {[%emt 0:01:19]} 17. Bxd4 {[%emt 0:00:44] Threatening Qd3.} c5 {[%emt 0:00:07]} 18. Bxf6 {[%emt 0:12:53]} Bxf6 {[%emt 0:02:57]} 19. Rc1 {[%emt 0:03:53]} Bd4+ {[%emt 0:02:36]} 20. Kh2 {[%emt 0:02:12] Strongly threatening Nb5.} Bd7 {[%emt 0:00:40]} 21. h4 {[%emt 0:10:26]} Bc6 {[%emt 0:03:15]} 22. h5 {[%emt 0:04:33] White is weak on the dark squares} Qf6 {[%emt 0:06:07]} 23. hxg6 {[%emt 0:01:19]} Qxg6 {[%emt 0:02:45]} 24. Qf3 {[%emt 0:06:10] Wards off Bf2} f5 {[%emt 0:08:12]} 25. Nd5 {[%emt 0:13:56]} fxe4 {[%emt 0:00:43] Black is more active.} 26. Qe2 {[%emt 0:00:35][%cal Rg2e4]} (26. Rxe4 $2 {too greedy.} Rxe4 27. Qxe4 Qh5+ 28. Bh3 Re8 29. Ne7+ Kf8 30. Qf5+ Qxf5 (30... Kxe7 $2 31. Re1+ $18) 31. Bxf5 Rxe7 $19 (31... Kxe7 $2 32. Bg6 $19)) 26... Bxd5 {[%emt 0:07:02]} (26... Bd7 {with more complications.} 27. Bh3 Rad8 28. Rh1 h5) 27. cxd5 {[%emt 0:00:05][%cal Rg2e4]} Re7 {[%emt 0:00:06]} 28. Bh3 {[%emt 0:01:25]} Kh8 {[%emt 0:04:06]} 29. Be6 {[%emt 0:00:24] Repels Rg8} Rg7 {[%emt 0:03:52]} 30. Qg2 {[%emt 0:01:30]} (30. g4 $11) 30... Qh5+ $17 {[%emt 0:01:42]} 31. Qh3 {[%emt 0:00:12] [#]} Qxh3+ {[%emt 0:00:08]} 32. Kxh3 {[%emt 0:00:23]} Bf2 $36 {[%emt 0:03:52][%csl LRe1,LRg3][%mdl 2048] Black is in control.} 33. Rxe4 {[%emt 0:00:10]} Rxg3+ {[%emt 0:00:11]} 34. Kh2 {[%emt 0:00:10]} Re3 {[%emt 0:00:54]} 35. Rxe3 {[%emt 0:01:49]} Bxe3 {[%emt 0:00:09][%mdl 4096] Endgame. KRB-KRB} 36. Rf1 {[%emt 0:00:11]} (36. Rc4 $142) 36... Rf8 {[%emt 0:06:20]} 37. Kg3 {[%emt 0:00:08]} b5 {[%emt 0:00:49]} 38. f5 {[%emt 0:00:14]} (38. Bg4 $17 {keeps fighting.}) 38... Bg5 {[%emt 0:04:59]} 39. Bd7 {[%emt 0:04:18]} c4 {[%emt 0:01:50]} 40. bxc4 {[%emt 0:00:50]} bxc4 {[%emt 0:00:19]} 41. Rf3 {[%emt 0:17:07]} Bd2 {[%emt 0:10:23] ...c3 is the strong threat.} 42. f6 $2 {[%emt 0:00:47] This costs White the game.} (42. Kf2 $17 {was forced.}) 42... c3 $19 {[%emt 0:00:46]} 43. Ba4 {[%emt 0:00:04]} Kg8 {[%emt 0:00:40]} 44. Kf2 $2 {[%emt 0:00:13]} (44. Kh3) 44... Rb8 {[%emt 0:04:58] Hoping for ...Rb2. Black is clearly winning.} 45. Ke2 {[%emt 0:02:57]} Rb2 {[%emt 0:01:25]} 46. Kd3 {[%emt 0:00:19]} Rxa2 {[%emt 0:05:21]} 47. f7+ {[%emt 0:01:14]} Kf8 {[%emt 0:00:05]} 48. Rf6 {[%emt 0:01:27]} Bg5 {[%emt 0:03:58]} 49. Rf1 {[%emt 0:02:28]} Rd2+ {[%emt 0:02:33]} 50. Kxc3 {[%emt 0:00:22]} a2 {[%emt 0:00:20]} ({Not} 50... Rxd5 51. Bb3 Ra5 52. Ba2 $17) 51. Bb3 {[%emt 0:05:06] [#]} Rf2 $3 {[%emt 0:00:41][%mdl 512]} 52. Kd4 {[%emt 0:05:33] Weighted Error Value: White=0.70/Black=0.07 (flawless) .  Loses game:     	White=1     	---        Mistake:       	White=4     	---        Inaccurate:     	White=6     	Black=6      OK:         	White=12    	Black=11     Best:        	White=4     	Black=7      Strong:       	---       	Black=1} (52. Rh1 Bf6+) 0-1

[Event "40th Cappelle Open 2024"]
[Site "Cappelle-la-Grande"]
[Date "2024.03.08"]
[Round "9.2"]
[White "Puranik, Abhimanyu"]
[Black "Nanjo, Ryosuke"]
[Result "1-0"]
[ECO "A18"]
[WhiteElo "2618"]
[BlackElo "2346"]
[Annotator "TA"]
[PlyCount "57"]
[EventDate "2024.03.02"]
[EventType "swiss"]
[EventCountry "FRA"]
[SourceTitle "playchess.com"]
[Source "ChessBase"]
[SourceQuality "1"]
[TimeControl "40/5400+30:1800+30"]

{[%evp 12,57,21,33,34,0,52,56,86,96,88,86,79,66,83,75,94,77,81,70,108,97,104,89,244,270,244,266,371,361,345,354,483,499,484,500,484,526,518,536,541,500,491,497,496,474,29998,29999]} 1. c4 {[%emt 0:00:07]} Nf6 {[%emt 0:00:14]} 2. Nc3 {[%emt 0:00:44]} e6 {[%emt 0:00:05]} 3. e4 {[%emt 0:01:38]} d5 {[%emt 0:00:08]} 4. cxd5 {[%emt 0:00:08]} exd5 {[%emt 0:00:06]} 5. e5 {[%emt 0:00:06]} Ne4 {[%emt 0:05:56]} 6. Nf3 {[%emt 0:00:34]} Nc6 {[%emt 0:08:50]} 7. Bb5 {[%emt 1:30:43]} Be7 {[%emt 0:03:26]} 8. Qa4 {[%emt 0:05:16]} (8. Qe2 $5) 8... Nc5 {[%emt 0:10:22]} (8... Bd7 $11) 9. Bxc6+ $14 {[%emt 0:02:05]} Kf8 {[%emt 0:00:37] White is slightly better.} 10. Qc2 {[%emt 0:00:13]} bxc6 {[%emt 0:00:32]} 11. d4 {[%emt 1:08:52]} Ne6 {[%emt 0:01:54]} 12. Ne2 {[%emt 0:01:31]} c5 {[%emt 0:05:55]} 13. O-O {[%emt 0:08:01] White is more active.} c4 {[%emt 0:05:29]} 14. Be3 {[%emt 0:01:40]} h5 {[%emt 0:18:20][%cal Bh7h5,Bh5h4,Bh4h3][%mdl 32]} 15. Nd2 {[%emt 0:00:41]} h4 {[%emt 0:06:54]} 16. f4 {[%emt 0:05:11] f5 is the strong threat.} h3 {[%emt 0:04:04]} 17. g3 {[%emt 0:05:41] And now f5 would win.} g6 {[%emt 0:02:49] This costs Black the game.} (17... Kg8 $16) 18. f5 $18 {[%emt 0:03:58]} gxf5 {[%emt 0:00:15]} 19. Qxf5 {[%emt 0:04:33]} Ng5 {[%emt 0:01:43]} 20. Qg6 {[%emt 0:41:56] Threatens to win with Bxg5. Black is weak on the dark squares} Rg8 {[%emt 0:06:54]} 21. Qh6+ {[%emt 0:08:12]} (21. Qh5 Qd7 $18) 21... Rg7 {[%emt 0:00:51]} 22. Bxg5 {[%emt 0:07:16]} Bxg5 {[%emt 0:00:09]} 23. Qh8+ {[%emt 0:00:16]} Rg8 {[%emt 0:00:10] [#]} 24. Rxf7+ $3 {[%emt 0:01:20][%mdl 512]} Kxf7 {[%emt 0:00:09][%cal Bf8f7,Bf7e6,Be6e7][%mdl 32]} 25. Qh7+ {[%emt 0:00:02]} Ke6 {[%emt 0:02:19]} 26. Qxh3+ {[%emt 0:00:04]} Ke7 {[%emt 0:01:20]} 27. Qh7+ {[%emt 0:00:04]} Ke6 {[%emt 0:00:12] [#]} 28. Rf1 {[%emt 0:00:13] Prevents Qf8.} (28. Qh3+ Kf7 29. Qh7+ Ke6 $18) 28... Qe8 {[%emt 0:02:44] [#] Inhibits Qf7+.} ({And not} 28... Bxd2 29. Qf7#) (28... Be3+ $18 29. Kh1 Rf8 30. Qg6+ Kd7) 29. Rf6+ $1 {[%emt 0:00:08][%mdl 512] Weighted Error Value: White=0.05 (flawless) /Black=0.52.  Mistake:       	---       	Black=3      Inaccurate:     	White=1     	Black=4      OK:         	White=11    	Black=7      Best:        	White=4     	Black=3      Brilliant:      	White=1     	---} 1-0

[Event "40th Cappelle Open 2024"]
[Site "Cappelle-la-Grande"]
[Date "2024.03.08"]
[Round "9.3"]
[White "Lodici, Lorenzo"]
[Black "Gopal G.N."]
[Result "1-0"]
[ECO "B93"]
[WhiteElo "2558"]
[BlackElo "2575"]
[Annotator "TA"]
[PlyCount "69"]
[EventDate "2024.03.02"]
[EventType "swiss"]
[EventCountry "FRA"]
[SourceTitle "playchess.com"]
[Source "ChessBase"]
[SourceQuality "1"]
[TimeControl "40/5400+30:1800+30"]

{[%evp 12,69,0,-1,3,0,0,0,19,-25,-18,-29,-27,-31,9,-4,-12,-8,20,10,10,7,14,0,0,0,0,0,0,0,0,-14,-9,-142,-66,-138,-142,-94,-87,-729,-657,-649,-152,-84,95,87,79,48,262,266,237,242,589,582,3547,3203,29980,29981,29981,29982]} 1. e4 {[%emt 0:00:09]} c5 {[%emt 0:00:04]} 2. Nf3 {[%emt 0:00:04]} d6 {[%emt 0:00:04]} 3. d4 {[%emt 0:00:07]} cxd4 {[%emt 0:00:05]} 4. Nxd4 {[%emt 0:00:03]} Nf6 {[%emt 0:00:04]} 5. Nc3 {[%emt 0:00:06]} a6 {[%emt 0:00:05]} 6. f4 {[%emt 0:00:05]} e5 {[%emt 0:01:35]} 7. Nb3 {[%emt 0:00:06]} Nc6 {[%emt 0:08:04]} 8. f5 {[%emt 0:02:07]} Be7 {[%emt 0:05:10][%cal Od6d5]} 9. Bd3 {[%emt 0:02:50]} b5 {[%emt 0:13:47] The position is equal.} 10. Be3 {[%emt 0:00:53]} Bb7 {[%emt 0:01:19]} 11. a3 {[%emt 0:11:54]} Rc8 {[%emt 0:01:57]} 12. Qf3 {[%emt 0:02:16]} Na5 {[%emt 0:05:53]} 13. Nxa5 {[%emt 0:03:22]} Qxa5 {[%emt 0:00:02]} 14. O-O {[%emt 0:02:42]} h5 {[%emt 0:03:07][%cal Bh7h5,Bh5h4][%mdl 32]} 15. Kh1 {[%emt 0:08:21]} Kf8 {[%emt 0:03:52]} 16. Bd2 {[%emt 0:13:05]} h4 {[%emt 0:07:16][%cal Oh4h3]} 17. Rfd1 {[%emt 0:06:54]} Qd8 {[%emt 0:06:41][%cal Oh4h3]} 18. a4 {[%emt 0:04:30]} b4 {[%emt 0:18:51]} 19. Nd5 {[%emt 0:01:17]} Bxd5 {[%emt 0:00:05]} 20. exd5 {[%emt 0:00:02]} a5 {[%emt 0:00:06]} 21. Ba6 {[%emt 0:10:43]} Rc5 {[%emt 0:05:30][%cal Oe5e4]} 22. Bb7 {[%emt 0:04:20]} (22. Be3 $11 {remains equal.}) 22... Nh5 {[%emt 0:09:07]} (22... h3 $1 $17 {[%cal Rh3g2]} 23. gxh3 e4 (23... Rxc2 24. Rac1 $17)) 23. c3 {[%emt 0:07:07]} (23. Be3 $1 $15) 23... bxc3 {[%emt 0:02:53]} 24. bxc3 {[%emt 0:00:13]} Bg5 {[%emt 0:00:53]} 25. Bc6 $2 {[%emt 0:02:40][%mdl 8192]} (25. Be1 $17) 25... Bxd2 {[%emt 0:01:32]} 26. Rxd2 {[%emt 0:00:01]} Qb6 {[%emt 0:00:40] Wards off Rb2} (26... Ng3+ $1 $19 {and Black stays clearly on top.} 27. Kg1 (27. hxg3 $2 {loses.} hxg3+ 28. Kg1 Qh4 $19) 27... Rxc3) 27. Qf2 {[%emt 0:02:01] [#]} (27. h3 $142) 27... Ng3+ $2 {[%emt 0:04:36]} 28. Kg1 $1 $16 {[%emt 0:00:01] Threatens to win with Rb2.} Ne4 {[%emt 0:00:08]} 29. Rb2 {[%emt 0:00:00]} Qd8 {[%emt 0:00:44]} (29... Qxc6 $1 $14 30. dxc6 Nxf2 31. Rb8+ Ke7 32. Rxh8 Ne4) 30. Qe3 {[%emt 0:04:15]} Nxc3 {[%emt 0:00:28][%cal Of8g8] [#]} (30... Rxc3 $2 {too greedy.} 31. Qxe4 Kg8 32. f6 $18) 31. Rc1 $1 {[%emt 0:00:01]} Nxd5 {[%emt 0:00:46]} (31... Rh5 {is more resistant.} 32. Rxc3 Rxc3 33. Qxc3 Rxf5) 32. Bxd5 $18 {[%emt 0:00:06]} Rxd5 {[%emt 0:00:02]} 33. Qa7 {[%emt 0:00:19] White wants to mate with Rb8.} Rc5 {[%emt 0:01:00]} 34. Rxc5 {[%emt 0:00:08]} dxc5 {[%emt 0:00:16]} 35. Rb8 {[%emt 0:00:04] Weighted Error Value: White=0.46/Black=0.72.  Loses game:     	White=1     	Black=1      Mistake:       	White=2     	Black=2      Inaccurate:     	White=1     	Black=4      OK:         	White=4     	Black=10     Best:        	White=2     	---        Strong:       	White=1     	---} 1-0